Workbook

Sheet 一、部门预算项目支出绩效自评结果汇总表
A1: 2021年度省级部门预算支出项目绩效自评结果汇总表
A2: 序号 | B2: 项目名称 | C2: 主管部门 | D2: 项目资金（万元） | J2: 自评 得分 | K2: 备注
D3: 全年预算数（A） | H3: 全年执行数（B） | I3: 执行率 （B/A）
D4: 小计 | E4: 当年财政拨款 | F4: 上年结转资金 | G4: 其他资金
A5: 1 | B5: “巾帼扶贫车间”培训就业经费 | C5: 甘肃省妇女联合会 | D5: =SUM(E5:G5) -> 800 | E5: 800 | H5: 800 | I5: =H5/D5 -> 100.00% | J5: 95.29
A6: 2 | B6: 业务费（一次性） | D6: =SUM(E6:G6) -> 73.2 | E6: 73.2 | H6: 73.2 | I6: =H6/D6 -> 100.00% | J6: 93.19
A7: 3 | B7: 保教费 | D7: 563 | E7: 563 | H7: 542.25 | I7: =H7/D7 -> 96.31% | J7: 96.26
A8: 4 | B8: 全省妇女及儿童发展经费 | D8: 1802.32 | E8: 1756 | F8: 46.32 | H8: 1728.04 | I8: =H8/D8 -> 95.88% | J8: 96.95
A9: 合计 | D9: =SUM(D5:D8) -> 3238.52 | E9: =SUM(E5:E8) -> 3192.2 | F9: 46.32 | H9: =SUM(H5:H8) -> 3143.49 | I9: =H9/D9 -> 97.07%

Sheet 1.“巾帼扶贫车间”培训就业经费
A1: 2021年部门预算项目支出绩效自评表
A2: 项目名称 | B2: “巾帼扶贫车间”培训就业经费（部门本级）
A3: 主管部门 | B3: 甘肃省妇女联合会 | E3: 实施单位 | F3: 甘肃省妇女联合会
A4: 项目资金（万元）
C5: 年初预算数 （万元） | D5: 全年预算数（万元） | F5: 全年执行数（万元） | H5: 执行率（%） | I5: 分值 | K5: 得分
A6: 年度资金总额 | C6: 800 | D6: 800 | F6: 800 | H6: 100.00 | I6: 10 | K6: 10
A7: 其中：财政拨款 | C7: 800 | D7: 800 | F7: 800 | H7: 100.00
A8: 其他资金
A9: 年度总体目标 | B9: 预期目标 | F9: 实际完成情况
B10: 2021年起，围绕全省巩固拓展脱贫攻坚成果与乡村振兴有效衔接工作部署，省妇联“巾帼扶贫车间”项目将重点提升车间建设运行质量，促进车间健康持续发展，主要支持车间妇联组织建设、奖励扶持就业能力强的优秀“巾帼扶贫车间”、开展车间骨干培训、外出对接订单等，我单位预计全部落实年度项目资金，推动各级妇联组织紧紧围绕党政中心工作，提升“巾帼扶贫车间”建设运行质量，建立车间妇女组织400个，奖励扶持“巾帼扶贫车间”115个，培训车间骨干1000人，将广大妇女紧紧团结在乡村振兴主战场上，把妇女工作的触角延伸到广大妇女的身边，在妇女就业帮扶中彰显巾帼特色。 | F10: 2021年，全省“巾帼扶贫车间”持续健康发展，建设运行质量稳步提升，建立巾帼扶贫车间473个、“车间”妇女组织423个，培树奖励优秀“巾帼扶贫车间”125个，组织“车间”骨干培训班24期1588人。各级妇联组织围绕省委省政府巩固拓展脱贫攻坚成果与乡村振兴有效衔接工作最新安排部署，不断提升“巾帼扶贫车间”建设运行质量，有效带动农村妇女就近就业增收，把妇女工作的触角延伸到广大妇女的身边，有效提升了“车间”就业妇女的内生动力、家庭地位及社会地位。
A11: 一级指标 | B11: 二级指标 | D11: 三级指标 | F11: 年度指标值 | G11: 实际完成值 | H11: 分值（权重） | I11: 指标得分 | J11: 偏差原因分析 及改进措施
A12: 产出指标 | B12: 数量指标 | D12: 车间妇女组织建立数 | F12: >=400个 | G12: 423个 | H12: 6 | I12: 6
D13: 车间骨干培训人数 | F13: >=1000人 | G13: 1588人 | H13: 4 | I13: 3.69
D14: 扶持奖励优秀的巾帼扶贫车间数 | F14: =115个 | G14: 125个 | H14: 5 | I14: 5
D15: 奖补车间扶持妇女就业人数 | F15: >=12000人 | G15: 14334人 | H15: 6 | I15: 6
D16: 巾帼扶贫车间骨干培训期次 | F16: >=15期 | G16: 24期 | H16: 5 | I16: 4.6
D17: 巾帼扶贫车间建设数 | F17: >=450个 | G17: 473个 | H17: 5 | I17: 5
D18: 外出对接车间订单次数 | F18: >=1次 | G18: 0次 | H18: 4 | I18: 0 | J18: 下半年疫情影响未能完成，今后结合疫情及早安排，穿插进行。
B19: 质量指标 | D19: 车间骨干培训考核合格率 | F19: >=90% | G19: 95% | H19: 5 | I19: 5
B20: 时效指标 | D20: 车间骨干培训及时性 | F20: 及时 | G20: 95% | H20: 5 | I20: 5
B21: 成本指标 | D21: 项目成本控制数（万元） | F21: <=800万元 | G21: 800万元 | H21: 5 | I21: 5
A22: 效益指标 | B22: 经济效益指标 | D22: 车间就业妇女增收率 | F22: >=2.5% | G22: 2.7% | H22: 5 | I22: 5
B23: 社会效益指标 | D23: 车间就业妇女家庭及社会地位 | F23: 提升 | G23: 95% | H23: 5 | I23: 5
B24: 社会效益指标 | D24: 车间就业妇女增收内生动力 | F24: 增强 | G24: 95% | H24: 5 | I24: 5
B25: 可持续影响指标 | D25: 部门协助 | F25: 良好 | G25: 95% | H25: 5 | I25: 5
A26: 效益指标 | B26: 可持续影响指标 | D26: 长效管理机制 | F26: 健全 | G26: 95% | H26: 5 | I26: 5
D27: 助力乡村振兴 | F27: 效果明显 | G27: 95% | H27: 5 | I27: 5
A28: 满意度指标 | B28: 满意度指标 | D28: 车间骨干培训班课程安排满意度 | F28: >=90% | G28: 93% | H28: 3 | I28: 3
A29: 满意度指标 | B29: 满意度指标 | D29: 车间骨干培训班培训时长满意度 | F29: >=80% | G29: 93% | H29: 2.5 | I29: 2.5
A30: 满意度指标 | B30: 满意度指标 | D30: 车间骨干培训班培训实用性满意度 | F30: >=90% | G30: 96% | H30: 2 | I30: 2
A31: 满意度指标 | B31: 满意度指标 | D31: 车间骨干培训班培训形式满意度 | F31: >=80% | G31: 91% | H31: 2.5 | I31: 2.5
A32: 总分 | H32: 100 | I32: 95.29 | J32: 优秀
A33: 说明 | B33: 请在此处简要说明中央和省委巡视、各级审计和财政监督中发现的问题及其所涉及的金额，如没有填无。
A34: 注：1.其他资金包括中央补助、各级财政资金共同投入到同一项目的自有资金、社会资金等。
A35: 2.绩效自评采取打分评价形式，满分为100分，各部门可根据指标的重要程度自主确定各项三级指标的权重分值，各项指标得分加总得出该项目绩效自评的总分（中央和省委巡视、各级审计和财政监督中发现问题的酌情扣分），各项指标得分最高不能超过该指标分值上限，原则上一级指标分值统一设置为：产出指标50分、效益指标30分、满意度指标10分、预算资金执行率10分。如有特殊情况，除预算资金执行率外，其他指标权重可作适当调整，但总分应为100分。
A36: 3.本表资金使用单位按具体项目填报，主管部门按二级项目汇总绩效目标，对于定量指标，绝对值直接累加计算，相对值按照资金额度加权平均计算；定性指标根据指标完成情况分为：全部或基本达成预期指标、部分达成预期指标并具有一定效果、未达成预期指标且效果较差三档，分别按照100%-80%（含）、80%-60%（含）、60%-0%合理填写完成比例。

Sheet 2.业务费（一次性）
A1: 2021年部门预算项目支出绩效自评表
A2: 项目名称 | B2: 业务费（一次性）（部门本级）
A3: 主管部门 | B3: 甘肃省妇女联合会 | E3: 实施单位 | F3: 甘肃省妇女儿童服务中心
A4: 项目资金（万元）
C5: 年初预算数 （万元） | D5: 全年预算数（万元） | F5: 全年执行数（万元） | H5: 执行率（%） | I5: 分值 | K5: 得分
A6: 年度资金总额 | C6: 73.2 | D6: 73.2 | F6: 73.2 | H6: 100.00 | I6: 10 | K6: 10
A7: 其中：财政拨款 | C7: 73.2 | D7: 73.2 | F7: 73.2 | H7: 100.00
A8: 其他资金
A9: 年度总体目标 | B9: 预期目标 | F9: 实际完成情况
B10: 保障甘肃省妇女儿童服务中心2021年各项工作顺利开展，提高我省妇女儿童素质，促进社会发展，持续推进妇女儿童事业发展。 | F10: 一是保障了甘肃省妇女儿童服务中心的物业服务及各项工作的顺利开展；二是有效提高了我省妇女儿童素质，促进了社会发展，为乡村振兴事业添砖加瓦；三是完成了7人的业绩考核发放及3名退休职工的慰问；四是完成了1次业务素质外出培训及6次外出活动租车保障。
A11: 一级指标 | B11: 二级指标 | D11: 三级指标 | F11: 年度指标值 | G11: 实际完成值 | H11: 分值（权重） | I11: 指标得分 | J11: 偏差原因分析 及改进措施
A12: 产出指标 | B12: 数量指标 | D12: 计划业务素质外出培训场次 | F12: >=1场 | G12: 1场 | H12: 4.54 | I12: 4.54
D13: 外出活动租车次数 | F13: >=6次 | G13: 6次 | H13: 4.54 | I13: 4.54
D14: 慰问困难职工人次 | F14: >=5人次 | G14: 0人次 | H14: 4.54 | I14: 0 | J14: 此项工作当年未开展
D15: 慰问退休职工人数 | F15: =3名 | G15: 3名 | H15: 4.54 | I15: 4.54
D16: 物业维护面积 | F16: =12632平方米 | G16: 12632平方米 | H16: 4.6 | I16: 4.6
A17: 产出指标 | B17: 数量指标 | D17: 业绩考核发放人次 | F17: >=6人次 | G17: 7人次 | H17: 4.54 | I17: 4.54
B18: 质量指标 | D18: 办公区域整洁率 | F18: =100% | G18: 95% | H18: 4.54 | I18: 4.54
B19: 质量指标 | D19: 有责停电、停水次数 | F19: =0次 | G19: 0次 | H19: 4.54 | I19: 4.54
B20: 时效指标 | D20: 慰问退休、困难职工及时性 | F20: 及时 | G20: 50% | H20: 4.54 | I20: 2.27 | J20: 困难职工此项工作当年未开展
B21: 时效指标 | D21: 物业维护及时性 | F21: 及时 | G21: 95% | H21: 4.54 | I21: 4.54
B22: 成本指标 | D22: 慰问退休、困难职工标准 | F22: >=300元 | G22: 300元 | H22: 4.54 | I22: 4.54
A23: 效益指标 | B23: 社会效益指标 | D23: 安全事故发生次数 | F23: =0次 | G23: 0次 | H23: 6 | I23: 6
A24: 效益指标 | B24: 社会效益指标 | D24: 办公区域运营正常率 | F24: =100% | G24: 100% | H24: 6 | I24: 6
A25: 效益指标 | B25: 社会效益指标 | D25: 妇女儿童素质 | F25: 提高 | G25: 90% | H25: 6 | I25: 6
A26: 效益指标 | B26: 社会效益指标 | D26: 有效投诉次数 | F26: =0次 | G26: 0次 | H26: 6 | I26: 6
A27: 效益指标 | B27: 可持续影响指标 | D27: 妇女儿童事业发展 | F27: 持续推进 | G27: 90% | H27: 6 | I27: 6
A28: 满意度指标 | B28: 满意度指标 | D28: 机关人员满意度 | F28: >=90% | G28: 90% | H28: 5 | I28: 5
A29: 满意度指标 | B29: 满意度指标 | D29: 受慰问退休、困难职工满意度 | F29: >=90% | G29: 90% | H29: 5 | I29: 5
A30: 总分 | H30: 100 | I30: 93.19 | J30: 优秀
A31: 说明 | B31: 请在此处简要说明中央和省委巡视、各级审计和财政监督中发现的问题及其所涉及的金额，如没有填无。
A32: 注：1.其他资金包括中央补助、各级财政资金共同投入到同一项目的自有资金、社会资金等。
A33: 2.绩效自评采取打分评价形式，满分为100分，各部门可根据指标的重要程度自主确定各项三级指标的权重分值，各项指标得分加总得出该项目绩效自评的总分（中央和省委巡视、各级审计和财政监督中发现问题的酌情扣分），各项指标得分最高不能超过该指标分值上限，原则上一级指标分值统一设置为：产出指标50分、效益指标30分、满意度指标10分、预算资金执行率10分。如有特殊情况，除预算资金执行率外，其他指标权重可作适当调整，但总分应为100分。
A34: 3.本表资金使用单位按具体项目填报，主管部门按二级项目汇总绩效目标，对于定量指标，绝对值直接累加计算，相对值按照资金额度加权平均计算；定性指标根据指标完成情况分为：全部或基本达成预期指标、部分达成预期指标并具有一定效果、未达成预期指标且效果较差三档，分别按照100%-80%（含）、80%-60%（含）、60%-0%合理填写完成比例。

Sheet 3.保教费
A1: 2021年部门预算项目支出绩效自评表
A2: 项目名称 | B2: 保教费（部门本级）
A3: 主管部门 | B3: 甘肃省妇女联合会 | E3: 实施单位 | F3: 甘肃省妇联第二保育院、甘肃省妇联保育院
A4: 项目资金（万元）
C5: 年初预算数 （万元） | D5: 全年预算数（万元） | F5: 全年执行数（万元） | H5: 执行率（%） | I5: 分值 | K5: 得分
A6: 年度资金总额 | C6: 563 | D6: 563 | F6: 542.25 | H6: 96.31 | I6: 10 | K6: 9.631
A7: 其中：财政拨款 | C7: 563 | D7: 563 | F7: 542.25 | H7: 96.31
A8: 其他资金
A9: 年度总体目标 | B9: 预期目标 | F9: 实际完成情况
B10: 保障甘肃省妇联第二保育院、甘肃省妇联保育院两家单位聘用人员工资和其它保障运转类支出，培养全园770多名幼儿健康快乐成长。 | F10: 2021年甘肃省妇联第二保育院、甘肃省妇联保育院两家单位以“促进幼儿身心健康全面发展”为宗旨，幼教工作成效显著，772名幼儿在两院健康快乐成长。
A11: 一级指标 | B11: 二级指标 | D11: 三级指标 | F11: 年度指标值 | G11: 实际完成值 | H11: 分值（权重） | I11: 指标得分 | J11: 偏差原因分析 及改进措施
A12: 产出指标 | B12: 数量指标 | D12: 地板维修面积 | F12: >=1400平方米 | G12: 520平方米 | H12: 2.94 | I12: 1.09 | J12: 一是前期手续不全，二是受疫情影响。
D13: 工资保障人数 | F13: >=75人 | G13: 81人 | H13: 2.94 | I13: 2.94
D14: 培训场次 | F14: >=25次 | G14: 25次 | H14: 2.94 | I14: 2.94
D15: 聘请讲课专家人次 | F15: >=30人次 | G15: 28人次 | H15: 2.94 | I15: 2.94
D16: 设备购置数量（套） | F16: >=18套 | G16: 17套 | H16: 2.96 | I16: 2.96
A17: 产出指标 | B17: 数量指标 | D17: 物业保障面积 | F17: >=6762平方米 | G17: 6762平方米 | H17: 2.94 | I17: 2.94
B18: 质量指标 | D18: 地板维修验收合格率 | F18: =100% | G18: 95% | H18: 2.94 | I18: 2.94
B19: 质量指标 | D19: 工资发放准确率 | F19: =100% | G19: 99.5% | H19: 2.94 | I19: 2.94
B20: 质量指标 | D20: 聘请专家资质 | F20: 中级以上 | G20: 92.5% | H20: 2.94 | I20: 2.94
B21: 质量指标 | D21: 设备验收合格率 | F21: =100% | G21: 99% | H21: 2.94 | I21: 2.94
B22: 时效指标 | D22: 地板维修及时性 | F22: 及时 | G22: 60% | H22: 2.94 | I22: 1.76 | J22: 一是前期手续不全，二是受疫情影响。
B23: 时效指标 | D23: 工资发放及时性 | F23: 及时 | G23: 99.5% | H23: 2.94 | I23: 2.94
B24: 时效指标 | D24: 集中供暖及时性 | F24: 及时 | G24: 99.5% | H24: 2.94 | I24: 2.94
B25: 时效指标 | D25: 培训开展及时性 | F25: 及时 | G25: 99.5% | H25: 2.94 | I25: 2.94
B26: 时效指标 | D26: 设备购置及时性 | F26: 及时 | G26: 99.5% | H26: 2.94 | I26: 2.94
B27: 时效指标 | D27: 物业维护及时性 | F27: 及时 | G27: 99% | H27: 2.94 | I27: 2.94
B28: 成本指标 | D28: 工资发放标准（每人每月） | F28: >=3900元 | G28: 3450元 | H28: 2.94 | I28: 2.6 | J28: 年初绩效目标设置不准确，下一年度改进。
A29: 效益指标 | B29: 社会效益指标 | D29: 教师职业素质 | F29: 提升 | G29: 96.5% | H29: 4.28 | I29: 4.28
B30: 社会效益指标 | D30: 培养幼儿人数 | F30: >770人 | G30: 772人 | H30: 4.28 | I30: 4.28
B31: 社会效益指标 | D31: 全面健康检查幼儿人数 | F31: >770人 | G31: 772人 | H31: 4.32 | I31: 4.32
B32: 社会效益指标 | D32: 幼儿行为习惯 | F32: 全面培养 | G32: 96.5% | H32: 4.28 | I32: 4.28
B33: 社会效益指标 | D33: 幼儿有责安全事故发生数 | F33: =0起 | G33: 0起 | H33: 4.28 | I33: 4.28
A34: 效益指标 | B34: 可持续影响指标 | D34: 幼儿健康长效管理机制 | F34: 健全 | G34: 95% | H34: 4.28 | I34: 4.28
B35: 可持续影响指标 | D35: 幼儿行为习惯长效管理机制 | F35: 建立 | G35: 95% | H35: 4.28 | I35: 4.28
A36: 满意度指标 | B36: 满意度指标 | D36: 家长满意度（%） | F36: >=85% | G36: 84.5% | H36: 5 | I36: 5
A37: 满意度指标 | B37: 满意度指标 | D37: 聘用人员满意度 | F37: >=85% | G37: 84.5% | H37: 5 | I37: 5
A38: 总分 | H38: 100 | I38: 96.26 | J38: 优秀
A39: 说明 | B39: 请在此处简要说明中央和省委巡视、各级审计和财政监督中发现的问题及其所涉及的金额，如没有填无。
A40: 注：1.其他资金包括中央补助、各级财政资金共同投入到同一项目的自有资金、社会资金等。
A41: 2.绩效自评采取打分评价形式，满分为100分，各部门可根据指标的重要程度自主确定各项三级指标的权重分值，各项指标得分加总得出该项目绩效自评的总分（中央和省委巡视、各级审计和财政监督中发现问题的酌情扣分），各项指标得分最高不能超过该指标分值上限，原则上一级指标分值统一设置为：产出指标50分、效益指标30分、满意度指标10分、预算资金执行率10分。如有特殊情况，除预算资金执行率外，其他指标权重可作适当调整，但总分应为100分。
A42: 3.本表资金使用单位按具体项目填报，主管部门按二级项目汇总绩效目标，对于定量指标，绝对值直接累加计算，相对值按照资金额度加权平均计算；定性指标根据指标完成情况分为：全部或基本达成预期指标、部分达成预期指标并具有一定效果、未达成预期指标且效果较差三档，分别按照100%-80%（含）、80%-60%（含）、60%-0%合理填写完成比例。

Sheet 4.全省妇女及儿童发展经费
A1: 2021年部门预算项目支出绩效自评表
A2: 项目名称 | B2: 全省妇女及儿童发展经费（部门本级）
A3: 主管部门 | B3: 甘肃省妇女联合会 | E3: 实施单位 | F3: 甘肃省妇女联合会
A4: 项目资金（万元）
C5: 年初预算数 （万元） | D5: 全年预算数（万元） | F5: 全年执行数（万元） | H5: 执行率（%） | I5: 分值 | K5: 得分
A6: 年度资金总额 | C6: 1756 | D6: 1802.32 | F6: =F7+F8 -> 1728.04 | H6: =F6/D6 -> 95.88% | I6: 10 | K6: 9.59
A7: 其中：财政拨款 | C7: 1756 | D7: 1756 | F7: 1681.72 | H7: =F7/D7 -> 95.77%
A8: 结转资金 | D8: 46.32 | F8: 46.32 | H8: 100.00
A9: 年度总体目标 | B9: 预期目标 | F9: 实际完成情况
B10: 2021年度，将广大妇女紧紧团结起来，围绕省委省政府脱贫攻坚工作最新安排部署，助力脱贫攻坚战圆满收官。全国妇联要求：各级党政政府要结合本地经济发展实际，将女性人均1元的专项经费纳入财政预算，尤其是要部各省区要认真落实，并及时反馈情况。我单位预计开展妇女小额贷款培训推进、妇女病普查工作经费、妇女之家示范点和农村留守妇女阳光家园示范点建设、“陇原月嫂”基地建设和劳务培训、妇女维稳维权骨干培训、妇女社会地位调查、幼儿教育基础设施改造、家庭教育网络建设、美丽乡村建设、巾帼家美积分超市建设、乡村厨娘、妇女干部培训等。 | F10: 举办各类宣传宣讲活动近7000场次，参与76万人次;开设“奋斗百年路·启航新征程”“巾帼学党史”“百名陇原优秀女党员故事”等新媒体专题专栏，拍摄制作献礼建党100周年主题微电影、巾帼志愿服务公益短片，微博、抖音、今日头条等平台累计访问量达315.2万人次;培树命名陇原脱贫攻坚巾帼先进集体50个、巾帼带头人110名、“最美家政人”100名，评选表彰巾帼文明岗103个、巾帼建功先进集体55个、巾帼建功标兵130名;揭晓省级“最美家庭”1010户，25户入选全国“最美家庭”;组织15.4万巾帼志愿者带领农村妇女开展清洁行动13万场次;联合省住建厅命名省级“美丽庭院”示范村100个、示范户1000户，带动市县培树“美丽庭院”示范村3023个、示范户6.46万户，推动80%以上农村家庭实现“七净一规范”。
A11: 一级指标 | B11: 二级指标 | D11: 三级指标 | F11: 年度指标值 | G11: 实际完成值 | H11: 分值（权重） | I11: 指标得分 | J11: 偏差原因分析 及改进措施
A12: 产出指标 | B12: 数量指标 | D12: “三八红旗手”获奖人数 | F12: =100人 | G12: 100人 | H12: 4 | I12: 4
D13: 超市设立数量 | F13: >=340家 | G13: 345家 | H13: 3 | I13: 3
A14: 产出指标 | B14: 数量指标 | D14: 妇女脱贫攻坚培训场次 | F14: >=50场 | G14: 85场 | H14: 5 | I14: 4.51 | J14: 超过预期，下年度改进。
D15: 翰墨传家优秀作品选拔获奖人数 | F15: <100人 | G15: 92人 | H15: 3 | I15: 3
D16: 家庭教育及文明建设活动专家聘用人数 | F16: >=10人 | G16: 10人 | H16: 3 | I16: 3
D17: 乡村厨娘培训人数 | F17: >=100人 | G17: 102人 | H17: 3 | I17: 3
D18: 新闻报道数量 | F18: >=300次 | G18: 350次 | H18: 5 | I18: 5
B19: 质量指标 | D19: 乡村厨娘培训合格率 | F19: =100% | G19: 100% | H19: 3 | I19: 3
B20: 质量指标 | D20: 新闻报道覆盖率 | F20: >=100% | G20: 100% | H20: 5 | I20: 5
B21: 质量指标 | D21: 新闻报道需求率 | F21: >=100% | G21: 100% | H21: 4 | I21: 4
B22: 时效指标 | D22: 活动举办及时性 | F22: 及时 | G22: 92% | H22: 3 | I22: 3
B23: 时效指标 | D23: 培训及时性 | F23: 及时 | G23: 95% | H23: 3 | I23: 3
B24: 时效指标 | D24: 新闻报道及时性 | F24: 及时 | G24: 95% | H24: 3 | I24: 3
B25: 成本指标 | D25: 成本节约率 | F25: <=5% | G25: 5% | H25: 3 | I25: 3
A26: 效益指标 | B26: 社会效益指标 | D26: 妇女社会地位 | F26: 提升 | G26: 95% | H26: 3 | I26: 3
D27: 广大妇女自强自立性 | F27: 提升 | G27: 95% | H27: 3 | I27: 3
D28: 灵活多样建立“妇女微家” | F28: >=4000个 | G28: 4500个 | H28: 3 | I28: 3
D29: 命名省级“美丽庭院”示范村 | F29: >=100个 | G29: 100个 | H29: 3 | I29: 3
D30: 命名全省“最美家庭” | F30: >=1000户 | G30: 1010户 | H30: 3 | I30: 3
A31: 效益指标 | B31: 社会效益指标 | D31: 全省妇女创业积极性 | F31: 提升 | G31: 95% | H31: 3 | I31: 3
B32: 生态效益指标 | D32: 带领农村妇女开展清洁行动 | F32: >=7万场次 | G32: 13万场次 | H32: 4 | I32: 1.85
B33: 可持续影响指标 | D33: 部门协作性 | F33: 高 | G33: 95% | H33: 2 | I33: 2
B34: 可持续影响指标 | D34: 长效管理机制 | F34: 健全 | G34: 95% | H34: 2 | I34: 2
B35: 可持续影响指标 | D35: 人员到位情况 | F35: 到位 | G35: 95% | H35: 2 | I35: 2
B36: 可持续影响指标 | D36: 信息共享机制 | F36: 完善 | G36: 95% | H36: 2 | I36: 2
A37: 满意度指标 | B37: 满意度指标 | D37: 全省妇女满意度 | F37: >=90% | G37: 95% | H37: 10 | I37: 10
A38: 总分 | H38: 100 | I38: =SUM(I12:I37)+K6 -> 96.95 | J38: 优秀
A39: 说明 | B39: 请在此处简要说明中央和省委巡视、各级审计和财政监督中发现的问题及其所涉及的金额，如没有填无。
A40: 注：1.其他资金包括中央补助、各级财政资金共同投入到同一项目的自有资金、社会资金等。
A41: 2.绩效自评采取打分评价形式，满分为100分，各部门可根据指标的重要程度自主确定各项三级指标的权重分值，各项指标得分加总得出该项目绩效自评的总分（中央和省委巡视、各级审计和财政监督中发现问题的酌情扣分），各项指标得分最高不能超过该指标分值上限，原则上一级指标分值统一设置为：产出指标50分、效益指标30分、满意度指标10分、预算资金执行率10分。如有特殊情况，除预算资金执行率外，其他指标权重可作适当调整，但总分应为100分。
A42: 3.本表资金使用单位按具体项目填报，主管部门按二级项目汇总绩效目标，对于定量指标，绝对值直接累加计算，相对值按照资金额度加权平均计算；定性指标根据指标完成情况分为：全部或基本达成预期指标、部分达成预期指标并具有一定效果、未达成预期指标且效果较差三档，分别按照100%-80%（含）、80%-60%（含）、60%-0%合理填写完成比例。

Sheet 二、省对市县转移支付绩效自评结果汇总表
A1: 2021年度省对市县转移支付绩效自评结果汇总表
A2: 序号 | B2: 转移支付名称 | C2: 主管部门 | D2: 转移支付预算执行情况（万元） | K2: 自评 得分 | L2: 备注
D3: 全年预算数（A） | I3: 全年执行数（B） | J3: 执行率 （B/A）
D4: 小计 | E4: 中央补助 | F4: 省级安排 | G4: 市县安排 | H4: 其他资金
A5: 1 | B5: 持续开展妇女“两癌”检查 | C5: 甘肃省妇女联合会 | D5: =SUM(E5:H5) -> 1200 | F5: 1200 | I5: 1200 | J5: =I5/D5 -> 100.00% | K5: 91.16
A6: 合计 | D6: =SUM(D5:D5) -> 1200 | F6: =SUM(F5:F5) -> 1200 | I6: =SUM(I5:I5) -> 1200 | J6: =I6/D6 -> 100.00%

Sheet 1.持续开展妇女“两癌”检查
A1: 2021年部门预算项目支出绩效自评表
A2: 项目名称 | B2: 持续开展妇女“两癌”检查（部门对下转移）
A3: 主管部门 | B3: 甘肃省妇女联合会 | E3: 实施单位 | F3: 甘肃省妇女联合会
A4: 项目资金（万元）
C5: 年初预算数 （万元） | D5: 全年预算数（万元） | F5: 全年执行数（万元） | H5: 执行率（%） | I5: 分值 | K5: 得分
A6: 年度资金总额 | C6: 1200 | D6: 1200 | F6: 1200 | H6: 100.00 | I6: 10 | K6: 10
A7: 其中：财政拨款 | C7: 1200 | D7: 1200 | F7: 1200 | H7: 100.00
A8: 其他资金
A9: 年度总体目标 | B9: 预期目标 | F9: 实际完成情况
B10: 2021年为我省20万33-64岁城镇低收入妇女以及未参加过2018-2020年为民办实事“两癌”检查的农村妇女进行“两癌”免费检查。 | F10: 2021年全省妇女“两癌”免费检查项目受检人数207636人，完成全年任务的103.82%。检查出乳腺癌患者94人，宫颈癌患者94人，疑似、异常、癌前病变10851人。
A11: 一级指标 | B11: 二级指标 | D11: 三级指标 | F11: 年度指标值 | G11: 实际完成值 | H11: 分值（权重） | I11: 指标得分 | J11: 偏差原因分析 及改进措施
A12: 产出指标 | B12: 数量指标 | D12: “两癌”检查人员培训覆盖率 | F12: >=95% | G12: 100% | H12: 5.26 | I12: 5.26
B13: 数量指标 | D13: 完成“两癌”检查人数 | F13: >=20万人 | G13: 20.76万人 | H13: 8.18 | I13: 8.18
B14: 质量指标 | D14: 宫颈癌及癌前病变检出率 | F14: 逐步提高 | G14: 4.756% | H14: 2 | I14: 0.1 | J14: 398.60/10万，年初绩效指标设置不准确，下年度改进。
A15: 产出指标 | B15: 质量指标 | D15: 宫颈癌检出率 | F15: 逐步提高 | G15: 39.86% | H15: 4.16 | I15: 1.66 | J15: 40.33/10万，年初绩效指标设置不准确，下年度改进。
D16: 宫颈癌早诊率 | F16: 逐步提高 | G16: 90.8% | H16: 4.16 | I16: 4.16
D17: 可疑病例随访率 | F17: >=90% | G17: 90.3% | H17: 5.25 | I17: 5.25
D18: 乳腺癌的检出率 | F18: 逐步提高 | G18: 4.03% | H18: 2.19 | I18: 0.09 | J18: 47.56/10万，年初绩效指标设置不准确，下年度改进。
D19: 乳腺癌及癌前病变检出率 | F19: 逐步提高 | G19: 62.81% | H19: 4.2 | I19: 2.64 | J19: 62.81/10万，年初绩效指标设置不准确，下年度改进。
D20: 早期乳腺癌的检出率 | F20: 逐步提高 | G20: 63.41% | H20: 2.12 | I20: 1.34
B21: 时效指标 | D21: “两癌”检查及时性 | F21: 及时 | G21: 98% | H21: 4.16 | I21: 4.16
B22: 时效指标 | D22: 可疑病例随访及时性 | F22: 及时 | G22: 98% | H22: 4.16 | I22: 4.16
B23: 成本指标 | D23: 人均检查成本 | F23: =120元 | G23: 120元 | H23: 4.16 | I23: 4.16
A24: 效益指标 | B24: 经济效益指标 | D24: 农村家庭因病致贫、因病返贫风险 | F24: 降低 | G24: 92% | H24: 3.75 | I24: 3.75
B25: 社会效益指标 | D25: “两癌”防治知识知晓率 | F25: >=80% | G25: 95.2% | H25: 3.75 | I25: 3.75
B26: 社会效益指标 | D26: 妇女“两癌”死亡率 | F26: 降低 | G26: 95% | H26: 3.75 | I26: 3.75
B27: 社会效益指标 | D27: 妇女“两癌”早诊、早治提高率 | F27: >=90% | G27: 90.85% | H27: 3.75 | I27: 3.75
B28: 社会效益指标 | D28: 妇女群众自我保健意识 | F28: 提高 | G28: 95% | H28: 3.75 | I28: 3.75
B29: 可持续影响指标 | D29: 两癌防治长效机制 | F29: 建立 | G29: 95% | H29: 3.75 | I29: 3.75
A30: 效益指标 | B30: 可持续影响指标 | D30: 医疗卫生机构的服务能力 | F30: 持续提高 | G30: 95% | H30: 3.75 | I30: 3.75
D31: 专业人员培训情况 | F31: 完善 | G31: 95% | H31: 3.75 | I31: 3.75
A32: 满意度指标 | B32: 满意度指标 | D32: 受益妇女满意度 | F32: >=90% | G32: 97.8% | H32: 10 | I32: 10
A33: 总分 | H33: 100 | I33: 91.16 | J33: 优秀
A34: 说明 | B34: 请在此处简要说明中央和省委巡视、各级审计和财政监督中发现的问题及其所涉及的金额，如没有填无。
A35: 注：1.其他资金包括中央补助、各级财政资金共同投入到同一项目的自有资金、社会资金等。
A36: 2.绩效自评采取打分评价形式，满分为100分，各部门可根据指标的重要程度自主确定各项三级指标的权重分值，各项指标得分加总得出该项目绩效自评的总分（中央和省委巡视、各级审计和财政监督中发现问题的酌情扣分），各项指标得分最高不能超过该指标分值上限，原则上一级指标分值统一设置为：产出指标50分、效益指标30分、满意度指标10分、预算资金执行率10分。如有特殊情况，除预算资金执行率外，其他指标权重可作适当调整，但总分应为100分。
A37: 3.本表资金使用单位按具体项目填报，主管部门按二级项目汇总绩效目标，对于定量指标，绝对值直接累加计算，相对值按照资金额度加权平均计算；定性指标根据指标完成情况分为：全部或基本达成预期指标、部分达成预期指标并具有一定效果、未达成预期指标且效果较差三档，分别按照100%-80%（含）、80%-60%（含）、60%-0%合理填写完成比例。
